[Event "Late-Titled-Tuesday-Blitz-June-04-2024"]
[Site "Chess.com"]
[Date "2024.06.04"]
[Round "6"]
[White "Itay121"]
[Black "Synctel"]
[Result "1-0"]
[WhiteElo "2538"]
[BlackElo "2096"]
[TimeControl "180+1"]
[EndTime "15:05:06 PDT"]
[Termination "Itay121 won on time"]

1. Nf3 {[%clk 0:03:00.9]} 1... Nf6 {[%clk 0:02:58.5]} 2. b3 {[%clk 0:03:01]}
2... d5 {[%clk 0:02:47.6]} 3. Bb2 {[%clk 0:03:00.9]} 3... Bf5 {[%clk 0:02:47.5]}
4. e3 {[%clk 0:03:01]} 4... e6 {[%clk 0:02:47.4]} 5. c4 {[%clk 0:03:00.6]} 5...
c6 {[%clk 0:02:45.9]} 6. d4 {[%clk 0:03:00.6]} 6... Nbd7 {[%clk 0:02:40.7]} 7.
Bd3 {[%clk 0:03:00.9]} 7... Bxd3 {[%clk 0:02:34.8]} 8. Qxd3 {[%clk 0:03:01.8]}
8... Ne4 {[%clk 0:02:33.9]} 9. Nbd2 {[%clk 0:03:01.7]} 9... f5 {[%clk
0:02:34.2]} 10. Ne5 {[%clk 0:03:01.5]} 10... Bb4 {[%clk 0:02:28.3]} 11. Nf3
{[%clk 0:02:55.3]} 11... Qf6 {[%clk 0:02:04.6]} 12. O-O {[%clk 0:02:50.7]} 12...
Bd6 {[%clk 0:02:01]} 13. a4 {[%clk 0:02:36.6]} 13... O-O {[%clk 0:01:37.2]} 14.
a5 {[%clk 0:02:28.3]} 14... a6 {[%clk 0:01:33.3]} 15. Ba3 {[%clk 0:02:21.3]}
15... Bxa3 {[%clk 0:01:30.3]} 16. Rxa3 {[%clk 0:02:22.2]} 16... g5 {[%clk
0:01:27.3]} 17. b4 {[%clk 0:02:10.9]} 17... g4 {[%clk 0:01:21.7]} 18. Ne1 {[%clk
0:02:08.1]} 18... Qh4 {[%clk 0:01:14.6]} 19. f3 {[%clk 0:01:48.1]} 19... g3
{[%clk 0:01:00.8]} 20. hxg3 {[%clk 0:01:37.8]} 20... Nxg3 {[%clk 0:01:01.7]} 21.
cxd5 {[%clk 0:01:29.7]} 21... exd5 {[%clk 0:00:37.2]} 22. f4 {[%clk 0:01:29.8]}
22... Nxf1 {[%clk 0:00:37]} 23. Kxf1 {[%clk 0:01:28.4]} 23... Rae8 {[%clk
0:00:35.7]} 24. Nef3 {[%clk 0:01:27.8]} 24... Qg4 {[%clk 0:00:31.6]} 25. Ne5
{[%clk 0:01:25.6]} 25... Nxe5 {[%clk 0:00:29.3]} 26. dxe5 {[%clk 0:01:24.9]}
26... Re6 {[%clk 0:00:20.9]} 27. Nf3 {[%clk 0:01:24.4]} 27... Rh6 {[%clk
0:00:19.3]} 28. Kf2 {[%clk 0:01:23.8]} 28... Rg6 {[%clk 0:00:18.5]} 29. Qf1
{[%clk 0:01:12.8]} 29... Qg3+ {[%clk 0:00:16.2]} 30. Kg1 {[%clk 0:01:13.1]}
30... Rh6 {[%clk 0:00:13.1]} 31. Qe1 {[%clk 0:00:58.6]} 31... Qg4 {[%clk
0:00:11.9]} 32. Kf2 {[%clk 0:00:56.2]} 32... Kf7 {[%clk 0:00:08]} 33. Ng5+
{[%clk 0:00:54.5]} 33... Ke7 {[%clk 0:00:07.6]} 34. b5 {[%clk 0:00:51.3]} 34...
cxb5 {[%clk 0:00:04.5]} 35. Qb4+ {[%clk 0:00:51]} 1-0

[Event "Late-Titled-Tuesday-Blitz-June-04-2024"]
[Site "Chess.com"]
[Date "2024.06.04"]
[Round "6"]
[White "MarceloPlaya"]
[Black "Maus7"]
[Result "0-1"]
[WhiteElo "2358"]
[BlackElo "2564"]
[TimeControl "180+1"]
[EndTime "15:05:07 PDT"]
[Termination "Maus7 won on time"]

1. e4 {[%clk 0:03:00.9]} 1... c5 {[%clk 0:02:59.7]} 2. Nf3 {[%clk 0:02:59.9]}
2... d6 {[%clk 0:03:00]} 3. d4 {[%clk 0:02:59.7]} 3... cxd4 {[%clk 0:03:00.3]}
4. Nxd4 {[%clk 0:03:00.2]} 4... Nf6 {[%clk 0:03:00.7]} 5. Nc3 {[%clk 0:03:00]}
5... a6 {[%clk 0:03:00.6]} 6. Bg5 {[%clk 0:02:59.6]} 6... Nbd7 {[%clk 0:03:00]}
7. f4 {[%clk 0:02:59.5]} 7... Qc7 {[%clk 0:02:56]} 8. Qf3 {[%clk 0:02:58.7]}
8... b5 {[%clk 0:02:55.9]} 9. O-O-O {[%clk 0:02:57.3]} 9... Bb7 {[%clk
0:02:56.1]} 10. Bd3 {[%clk 0:02:50]} 10... g6 {[%clk 0:02:55.8]} 11. Qe2 {[%clk
0:02:30.1]} 11... Bg7 {[%clk 0:02:44.5]} 12. Kb1 {[%clk 0:02:27]} 12... O-O
{[%clk 0:02:38.9]} 13. h4 {[%clk 0:02:21]} 13... b4 {[%clk 0:02:37.1]} 14. Na4
{[%clk 0:02:13.9]} 14... e5 {[%clk 0:01:35.6]} 15. Nf3 {[%clk 0:01:56.1]} 15...
Bc6 {[%clk 0:01:32]} 16. fxe5 {[%clk 0:01:44.3]} 16... dxe5 {[%clk 0:01:28.6]}
17. Bxf6 {[%clk 0:01:40]} 17... Bxf6 {[%clk 0:01:26.1]} 18. b3 {[%clk
0:01:28.7]} 18... Bxa4 {[%clk 0:01:25.4]} 19. bxa4 {[%clk 0:01:28.6]} 19... Nc5
{[%clk 0:01:19.6]} 20. Ka1 {[%clk 0:00:19.2]} 20... Nxa4 {[%clk 0:01:16.2]} 21.
Qd2 {[%clk 0:00:18.6]} 21... Nc3 {[%clk 0:01:07.6]} 22. Rb1 {[%clk 0:00:16.9]}
22... Nxb1 {[%clk 0:01:01.4]} 23. Rxb1 {[%clk 0:00:15.6]} 23... a5 {[%clk
0:01:01.1]} 24. h5 {[%clk 0:00:14.4]} 24... Rac8 {[%clk 0:00:59.3]} 25. hxg6
{[%clk 0:00:13.2]} 25... hxg6 {[%clk 0:00:59]} 26. Rh1 {[%clk 0:00:09]} 26...
Qc3+ {[%clk 0:00:55.8]} 27. Kb1 {[%clk 0:00:08]} 27... Qxd2 {[%clk 0:00:54.5]}
28. Nxd2 {[%clk 0:00:08]} 28... Kg7 {[%clk 0:00:51.9]} 29. Nc4 {[%clk
0:00:06.9]} 29... Rc5 {[%clk 0:00:50.8]} 30. Nb6 {[%clk 0:00:04.7]} 30... Bg5
{[%clk 0:00:47.3]} 31. Nd5 {[%clk 0:00:03.4]} 31... Bd2 {[%clk 0:00:44.9]} 0-1

[Event "Late-Titled-Tuesday-Blitz-June-04-2024"]
[Site "Chess.com"]
[Date "2024.06.04"]
[Round "6"]
[White "Romkachess"]
[Black "rhungaski"]
[Result "1-0"]
[WhiteElo "2526"]
[BlackElo "2625"]
[TimeControl "180+1"]
[EndTime "15:05:09 PDT"]
[Termination "Romkachess won by checkmate"]

1. e4 {[%clk 0:02:00.4]} 1... e6 {[%clk 0:02:58.3]} 2. d4 {[%clk 0:01:59.1]}
2... d5 {[%clk 0:02:58.9]} 3. Nc3 {[%clk 0:01:59.6]} 3... Bb4 {[%clk 0:02:58.5]}
4. e5 {[%clk 0:01:58.6]} 4... Qd7 {[%clk 0:02:58.5]} 5. a3 {[%clk 0:01:59.3]}
5... Bxc3+ {[%clk 0:02:57.9]} 6. bxc3 {[%clk 0:02:00.2]} 6... b6 {[%clk
0:02:58.6]} 7. Qg4 {[%clk 0:02:00.7]} 7... f5 {[%clk 0:02:59.2]} 8. Qg3 {[%clk
0:01:54.1]} 8... Ba6 {[%clk 0:02:59.2]} 9. Ne2 {[%clk 0:01:54.3]} 9... Nc6
{[%clk 0:02:56.8]} 10. h4 {[%clk 0:01:53.5]} 10... O-O-O {[%clk 0:02:54.6]} 11.
a4 {[%clk 0:01:50]} 11... Kb7 {[%clk 0:02:30]} 12. Bg5 {[%clk 0:01:49.4]} 12...
Rc8 {[%clk 0:02:28]} 13. Nf4 {[%clk 0:01:49.3]} 13... Bxf1 {[%clk 0:02:26.9]}
14. Kxf1 {[%clk 0:01:47.1]} 14... h6 {[%clk 0:02:03.1]} 15. Ng6 {[%clk
0:01:46.9]} 15... hxg5 {[%clk 0:02:03.7]} 16. Nxh8 {[%clk 0:01:46.7]} 16... g4
{[%clk 0:02:04.3]} 17. Ng6 {[%clk 0:01:46.2]} 17... Na5 {[%clk 0:01:59]} 18. Nf4
{[%clk 0:01:43.3]} 18... c5 {[%clk 0:01:54.7]} 19. Qd3 {[%clk 0:01:39.2]} 19...
Nc4 {[%clk 0:01:24.2]} 20. g3 {[%clk 0:01:33.7]} 20... Nh6 {[%clk 0:01:19.2]}
21. Kg2 {[%clk 0:01:32.9]} 21... Qc6 {[%clk 0:01:19.4]} 22. Rhb1 {[%clk
0:01:28.3]} 22... Ka8 {[%clk 0:01:19.6]} 23. Nh5 {[%clk 0:01:07.6]} 23... Rc7
{[%clk 0:01:17.9]} 24. Nf4 {[%clk 0:01:07.2]} 24... Nf7 {[%clk 0:01:17.1]} 25.
Ne2 {[%clk 0:00:48.6]} 25... Nfxe5 {[%clk 0:01:13.3]} 26. dxe5 {[%clk
0:00:46.6]} 26... Nxe5 {[%clk 0:01:14.2]} 27. Qb5 {[%clk 0:00:34.7]} 27... Qb7
{[%clk 0:01:14.6]} 28. a5 {[%clk 0:00:21.3]} 28... d4+ {[%clk 0:01:14.8]} 29.
Kf1 {[%clk 0:00:21.5]} 29... Qh1+ {[%clk 0:01:00.7]} 30. Ng1 {[%clk 0:00:21]}
30... Nf3 {[%clk 0:00:19.6]} 31. Qe8+ {[%clk 0:00:20.7]} 31... Kb7 {[%clk
0:00:19.2]} 32. a6# {[%clk 0:00:21.2]} 1-0

[Event "Late-Titled-Tuesday-Blitz-June-04-2024"]
[Site "Chess.com"]
[Date "2024.06.04"]
[Round "6"]
[White "guillembaches"]
[Black "Timurist"]
[Result "1-0"]
[WhiteElo "2493"]
[BlackElo "2347"]
[TimeControl "180+1"]
[EndTime "15:05:09 PDT"]
[Termination "guillembaches won on time"]

1. e4 {[%clk 0:03:00.9]} 1... e6 {[%clk 0:02:58]} 2. Nf3 {[%clk 0:03:00.9]} 2...
d5 {[%clk 0:02:58.6]} 3. exd5 {[%clk 0:03:01.7]} 3... exd5 {[%clk 0:02:58.8]} 4.
d4 {[%clk 0:03:02.1]} 4... Nc6 {[%clk 0:02:59]} 5. Bb5 {[%clk 0:03:02]} 5... Bd6
{[%clk 0:02:55.2]} 6. c4 {[%clk 0:03:02.5]} 6... dxc4 {[%clk 0:02:46.4]} 7. d5
{[%clk 0:03:03.4]} 7... a6 {[%clk 0:02:46.1]} 8. Ba4 {[%clk 0:03:03.9]} 8... b5
{[%clk 0:02:45.8]} 9. dxc6 {[%clk 0:03:04.5]} 9... bxa4 {[%clk 0:02:46.1]} 10.
O-O {[%clk 0:03:05]} 10... Ne7 {[%clk 0:02:46.2]} 11. Qxa4 {[%clk 0:03:05.5]}
11... Rb8 {[%clk 0:02:46.1]} 12. a3 {[%clk 0:03:03.7]} 12... O-O {[%clk
0:02:38.1]} 13. Nbd2 {[%clk 0:03:03.8]} 13... Bf5 {[%clk 0:02:21.2]} 14. Nxc4
{[%clk 0:02:57.7]} 14... Nd5 {[%clk 0:02:00.9]} 15. Nxd6 {[%clk 0:02:44.2]}
15... Qxd6 {[%clk 0:01:56.8]} 16. Rd1 {[%clk 0:02:40.7]} 16... Nb6 {[%clk
0:01:41.9]} 17. Rxd6 {[%clk 0:02:17.9]} 17... Nxa4 {[%clk 0:01:41.6]} 18. Rd2
{[%clk 0:02:18]} 18... Nc5 {[%clk 0:01:28.8]} 19. Nd4 {[%clk 0:02:12.6]} 19...
Bg6 {[%clk 0:01:21.3]} 20. b4 {[%clk 0:02:07.7]} 20... Ne4 {[%clk 0:01:18.3]}
21. Re2 {[%clk 0:02:01.5]} 21... Nc3 {[%clk 0:01:07.8]} 22. Re3 {[%clk
0:01:57.8]} 22... Rbd8 {[%clk 0:01:00]} 23. Rxc3 {[%clk 0:01:53.5]} 23... Rxd4
{[%clk 0:00:58.8]} 24. Be3 {[%clk 0:01:50.7]} 24... Rd5 {[%clk 0:00:55.9]} 25.
Bf4 {[%clk 0:01:42.6]} 25... Rfd8 {[%clk 0:00:51.6]} 26. h4 {[%clk 0:01:39.3]}
26... Rd1+ {[%clk 0:00:46]} 27. Rxd1 {[%clk 0:01:38.8]} 27... Rxd1+ {[%clk
0:00:46.9]} 28. Kh2 {[%clk 0:01:39.3]} 28... Rd3 {[%clk 0:00:47.1]} 29. Rc5
{[%clk 0:01:22.7]} 29... Rxa3 {[%clk 0:00:30.3]} 30. Bxc7 {[%clk 0:01:22.5]}
30... Ra2 {[%clk 0:00:26.9]} 31. h5 {[%clk 0:01:06.6]} 31... Be4 {[%clk
0:00:18.6]} 32. Be5 {[%clk 0:01:03.7]} 32... Rc2 {[%clk 0:00:17.6]} 33. Bc3
{[%clk 0:01:01]} 33... Bf5 {[%clk 0:00:03.9]} 34. Rxf5 {[%clk 0:00:57.3]} 34...
Rxc3 {[%clk 0:00:03.3]} 35. Rc5 {[%clk 0:00:57.5]} 1-0

[Event "Late-Titled-Tuesday-Blitz-June-04-2024"]
[Site "Chess.com"]
[Date "2024.06.04"]
[Round "6"]
[White "Mikhail_Golubev"]
[Black "rionelG"]
[Result "1-0"]
[WhiteElo "2512"]
[BlackElo "2320"]
[TimeControl "180+1"]
[EndTime "15:05:10 PDT"]
[Termination "Mikhail_Golubev won by resignation"]

1. e4 {[%clk 0:03:00.9]} 1... c5 {[%clk 0:02:59.9]} 2. Nf3 {[%clk 0:03:00.4]}
2... d6 {[%clk 0:03:00.5]} 3. d4 {[%clk 0:03:00.4]} 3... cxd4 {[%clk 0:03:01.4]}
4. Nxd4 {[%clk 0:03:00.7]} 4... Nf6 {[%clk 0:03:02.1]} 5. Nc3 {[%clk 0:03:01]}
5... a6 {[%clk 0:03:02.8]} 6. Bc4 {[%clk 0:03:01.1]} 6... b5 {[%clk 0:03:02.4]}
7. Bb3 {[%clk 0:02:58.7]} 7... e6 {[%clk 0:03:01.9]} 8. O-O {[%clk 0:02:56.3]}
8... Be7 {[%clk 0:03:02.3]} 9. Qf3 {[%clk 0:02:54.5]} 9... Qc7 {[%clk
0:02:21.9]} 10. Qg3 {[%clk 0:02:52.1]} 10... O-O {[%clk 0:02:22]} 11. Bh6 {[%clk
0:02:49.9]} 11... Ne8 {[%clk 0:02:22.6]} 12. Rad1 {[%clk 0:02:43.5]} 12... Kh8
{[%clk 0:02:19.5]} 13. Bg5 {[%clk 0:02:38.6]} 13... Bxg5 {[%clk 0:02:05.7]} 14.
Qxg5 {[%clk 0:02:39.5]} 14... Qc5 {[%clk 0:01:58.6]} 15. Qe7 {[%clk 0:02:29.5]}
15... Nd7 {[%clk 0:01:52.7]} 16. f4 {[%clk 0:01:14]} 16... e5 {[%clk 0:01:21]}
17. fxe5 {[%clk 0:01:03.1]} 17... dxe5 {[%clk 0:01:21.9]} 18. Qxc5 {[%clk
0:01:02.9]} 18... Nxc5 {[%clk 0:01:22.8]} 19. Nc6 {[%clk 0:01:00.9]} 19... Nxb3
{[%clk 0:01:19.4]} 20. axb3 {[%clk 0:00:57.8]} 20... Nf6 {[%clk 0:01:16.9]} 21.
Nxe5 {[%clk 0:00:49.4]} 21... Bb7 {[%clk 0:01:04.4]} 22. Nd5 {[%clk 0:00:49.5]}
22... Nxd5 {[%clk 0:00:30.2]} 23. exd5 {[%clk 0:00:50.4]} 23... Kg8 {[%clk
0:00:30.3]} 24. d6 {[%clk 0:00:35.9]} 24... f6 {[%clk 0:00:27.6]} 25. Nd7 {[%clk
0:00:35]} 25... Rfd8 {[%clk 0:00:25.1]} 26. Nc5 {[%clk 0:00:34.6]} 26... Bc6
{[%clk 0:00:22.6]} 27. Rfe1 {[%clk 0:00:31.5]} 27... Re8 {[%clk 0:00:20]} 28.
Rxe8+ {[%clk 0:00:27.7]} 28... Rxe8 {[%clk 0:00:20.9]} 29. d7 {[%clk 0:00:26.2]}
29... Rd8 {[%clk 0:00:20.5]} 30. Rd6 {[%clk 0:00:25.9]} 1-0

[Event "Late-Titled-Tuesday-Blitz-June-04-2024"]
[Site "Chess.com"]
[Date "2024.06.04"]
[Round "6"]
[White "Pig-filth"]
[Black "SilverCityIndigo"]
[Result "0-1"]
[WhiteElo "2319"]
[BlackElo "2473"]
[TimeControl "180+1"]
[EndTime "15:05:20 PDT"]
[Termination "SilverCityIndigo won by resignation"]

1. d4 {[%clk 0:02:57.4]} 1... d5 {[%clk 0:02:59.7]} 2. Bg5 {[%clk 0:02:57.3]}
2... Nc6 {[%clk 0:02:59.9]} 3. Nf3 {[%clk 0:02:54]} 3... Bf5 {[%clk 0:02:58.2]}
4. a3 {[%clk 0:02:32.2]} 4... h6 {[%clk 0:02:55.4]} 5. Bh4 {[%clk 0:02:15.8]}
5... g5 {[%clk 0:02:55.4]} 6. Bg3 {[%clk 0:02:15.5]} 6... Bg7 {[%clk 0:02:56.1]}
7. e3 {[%clk 0:02:11.8]} 7... Nf6 {[%clk 0:02:55.1]} 8. Bd3 {[%clk 0:02:01.4]}
8... Ne4 {[%clk 0:02:54.9]} 9. Nbd2 {[%clk 0:01:52.5]} 9... e6 {[%clk
0:02:52.2]} 10. Bxe4 {[%clk 0:01:44]} 10... dxe4 {[%clk 0:02:52.4]} 11. Ng1
{[%clk 0:01:43.3]} 11... h5 {[%clk 0:02:45.8]} 12. h4 {[%clk 0:01:42]} 12... g4
{[%clk 0:02:41.1]} 13. Ne2 {[%clk 0:01:41.5]} 13... e5 {[%clk 0:02:33]} 14. c3
{[%clk 0:01:33.4]} 14... Qd7 {[%clk 0:02:14.3]} 15. Nc4 {[%clk 0:01:19.3]} 15...
f6 {[%clk 0:01:49.6]} 16. dxe5 {[%clk 0:01:02.3]} 16... fxe5 {[%clk 0:01:49.1]}
17. Qxd7+ {[%clk 0:00:58.6]} 17... Kxd7 {[%clk 0:01:48.9]} 18. O-O-O+ {[%clk
0:00:54]} 18... Ke6 {[%clk 0:01:48.9]} 19. Nd2 {[%clk 0:00:49.6]} 19... Rhd8
{[%clk 0:01:42.7]} 20. Bh2 {[%clk 0:00:38.7]} 20... Na5 {[%clk 0:01:14.9]} 21.
b4 {[%clk 0:00:34.9]} 21... Rxd2 {[%clk 0:01:11.7]} 22. Kxd2 {[%clk 0:00:24.8]}
22... Nc4+ {[%clk 0:01:11.7]} 23. Kc2 {[%clk 0:00:22.2]} 23... Nxa3+ {[%clk
0:01:11.4]} 24. Kb3 {[%clk 0:00:21.2]} 24... Nb5 {[%clk 0:01:12.1]} 25. c4
{[%clk 0:00:16.8]} 25... Nd6 {[%clk 0:01:11.4]} 26. Nc3 {[%clk 0:00:14.2]} 26...
a5 {[%clk 0:01:02]} 27. Ra1 {[%clk 0:00:10]} 27... b6 {[%clk 0:00:32.7]} 28. c5
{[%clk 0:00:08.7]} 28... bxc5 {[%clk 0:00:30.6]} 29. bxc5 {[%clk 0:00:08]} 29...
Nb7 {[%clk 0:00:31.3]} 30. Na4 {[%clk 0:00:01.9]} 0-1

[Event "Late-Titled-Tuesday-Blitz-June-04-2024"]
[Site "Chess.com"]
[Date "2024.06.04"]
[Round "6"]
[White "Kacparov"]
[Black "Chessgod9oninsta"]
[Result "1-0"]
[WhiteElo "2912"]
[BlackElo "2713"]
[TimeControl "180+1"]
[EndTime "15:05:21 PDT"]
[Termination "Kacparov won by resignation"]

1. e4 {[%clk 0:03:00.9]} 1... c5 {[%clk 0:02:58.6]} 2. Nf3 {[%clk 0:03:01]} 2...
d6 {[%clk 0:02:58.2]} 3. d4 {[%clk 0:03:01.3]} 3... cxd4 {[%clk 0:02:58.8]} 4.
Nxd4 {[%clk 0:03:02.2]} 4... Nf6 {[%clk 0:02:59]} 5. f3 {[%clk 0:03:02.7]} 5...
e5 {[%clk 0:02:57.5]} 6. Nb3 {[%clk 0:03:02.8]} 6... d5 {[%clk 0:02:56.5]} 7.
Bg5 {[%clk 0:03:02.5]} 7... d4 {[%clk 0:02:55.1]} 8. c3 {[%clk 0:03:02.5]} 8...
Nc6 {[%clk 0:02:51.5]} 9. Bb5 {[%clk 0:03:02.3]} 9... Qb6 {[%clk 0:02:49]} 10.
Qd3 {[%clk 0:03:02.1]} 10... Nd7 {[%clk 0:02:33.6]} 11. N1d2 {[%clk 0:02:50.5]}
11... dxc3 {[%clk 0:02:29.8]} 12. bxc3 {[%clk 0:02:49]} 12... a6 {[%clk
0:02:19.3]} 13. Bxc6 {[%clk 0:02:43.8]} 13... Qxc6 {[%clk 0:02:19.1]} 14. Nc4
{[%clk 0:02:34.6]} 14... f6 {[%clk 0:02:16.3]} 15. Bh4 {[%clk 0:02:29.9]} 15...
Nc5 {[%clk 0:02:14.2]} 16. Nxc5 {[%clk 0:02:23.8]} 16... Bxc5 {[%clk 0:02:15.1]}
17. Bf2 {[%clk 0:02:14.7]} 17... Bxf2+ {[%clk 0:02:02.3]} 18. Kxf2 {[%clk
0:02:15.6]} 18... Be6 {[%clk 0:01:59.7]} 19. Ne3 {[%clk 0:02:09.1]} 19... O-O
{[%clk 0:01:53.6]} 20. Rhd1 {[%clk 0:02:06.3]} 20... Rac8 {[%clk 0:01:49.8]} 21.
Rac1 {[%clk 0:01:46]} 21... b5 {[%clk 0:01:29.8]} 22. Rd2 {[%clk 0:01:36]} 22...
Qb6 {[%clk 0:01:20.2]} 23. Qd6 {[%clk 0:01:28.8]} 23... Rc6 {[%clk 0:01:14]} 24.
Qe7 {[%clk 0:01:29.1]} 24... h6 {[%clk 0:00:59]} 25. g4 {[%clk 0:01:28.1]} 25...
Rfc8 {[%clk 0:00:52.9]} 26. Rd3 {[%clk 0:01:06.6]} 26... b4 {[%clk 0:00:49.9]}
27. c4 {[%clk 0:01:03.7]} 27... Rxc4 {[%clk 0:00:39.5]} 28. Rxc4 {[%clk
0:01:02.1]} 28... Rxc4 {[%clk 0:00:37.6]} 29. Qd8+ {[%clk 0:01:01]} 29... Qxd8
{[%clk 0:00:34.1]} 30. Rxd8+ {[%clk 0:01:01.9]} 30... Kh7 {[%clk 0:00:34.3]} 31.
Nxc4 {[%clk 0:01:01.9]} 31... Bxc4 {[%clk 0:00:35.2]} 32. Rb8 {[%clk 0:00:49.4]}
32... a5 {[%clk 0:00:33.9]} 33. Ra8 {[%clk 0:00:47.7]} 33... Bxa2 {[%clk
0:00:33.5]} 34. Rxa5 {[%clk 0:00:47.8]} 34... Bf7 {[%clk 0:00:31.6]} 35. Ra7
{[%clk 0:00:47.5]} 35... Kg8 {[%clk 0:00:30.4]} 36. Ra8+ {[%clk 0:00:47.1]}
36... Kh7 {[%clk 0:00:30.4]} 37. Rf8 {[%clk 0:00:46.4]} 37... Bg8 {[%clk
0:00:29]} 38. Rb8 {[%clk 0:00:46.1]} 38... b3 {[%clk 0:00:28.9]} 39. h4 {[%clk
0:00:45.2]} 39... g5 {[%clk 0:00:25.1]} 40. Rb7+ {[%clk 0:00:43.9]} 40... Kh8
{[%clk 0:00:22.1]} 41. h5 {[%clk 0:00:44.2]} 41... Be6 {[%clk 0:00:20.1]} 42.
Ke3 {[%clk 0:00:44.4]} 42... Kg8 {[%clk 0:00:19.5]} 43. Kd3 {[%clk 0:00:43.9]}
43... Bf7 {[%clk 0:00:19.8]} 44. Kc3 {[%clk 0:00:43.5]} 44... Kh7 {[%clk
0:00:20]} 45. Rxf7+ {[%clk 0:00:43]} 1-0

[Event "Late-Titled-Tuesday-Blitz-June-04-2024"]
[Site "Chess.com"]
[Date "2024.06.04"]
[Round "6"]
[White "FXDon77"]
[Black "CarlosjPineror"]
[Result "1-0"]
[WhiteElo "2874"]
[BlackElo "2675"]
[TimeControl "180+1"]
[EndTime "15:05:21 PDT"]
[Termination "FXDon77 won on time"]

1. e4 {[%clk 0:03:00.9]} 1... c5 {[%clk 0:03:00.2]} 2. Nf3 {[%clk 0:03:00.9]}
2... e6 {[%clk 0:03:00.9]} 3. d4 {[%clk 0:03:00.8]} 3... cxd4 {[%clk 0:03:01.8]}
4. Nxd4 {[%clk 0:03:01]} 4... a6 {[%clk 0:03:02.7]} 5. c4 {[%clk 0:03:01.3]}
5... Qc7 {[%clk 0:03:03.4]} 6. Nc3 {[%clk 0:03:01.7]} 6... Nf6 {[%clk
0:03:04.1]} 7. a3 {[%clk 0:03:01.7]} 7... d6 {[%clk 0:03:04.1]} 8. Be3 {[%clk
0:03:01.9]} 8... Be7 {[%clk 0:03:04.8]} 9. Be2 {[%clk 0:03:02.5]} 9... b6 {[%clk
0:03:05.4]} 10. Rc1 {[%clk 0:03:02.8]} 10... Bb7 {[%clk 0:03:06.1]} 11. f3
{[%clk 0:03:03.5]} 11... Nbd7 {[%clk 0:03:06.8]} 12. O-O {[%clk 0:03:04]} 12...
O-O {[%clk 0:03:07.6]} 13. b4 {[%clk 0:02:57.8]} 13... Rac8 {[%clk 0:03:07.5]}
14. Kh1 {[%clk 0:02:55.1]} 14... Qb8 {[%clk 0:03:07.9]} 15. Rc2 {[%clk
0:02:55.2]} 15... Bd8 {[%clk 0:03:08.1]} 16. Bg1 {[%clk 0:02:51.6]} 16... Bc7
{[%clk 0:03:08.6]} 17. Na4 {[%clk 0:02:48.5]} 17... Rfe8 {[%clk 0:03:08.9]} 18.
Qc1 {[%clk 0:02:46.8]} 18... h6 {[%clk 0:03:08.3]} 19. Nb3 {[%clk 0:02:36.2]}
19... Bd8 {[%clk 0:03:08.2]} 20. c5 {[%clk 0:02:31.5]} 20... dxc5 {[%clk
0:03:07.9]} 21. bxc5 {[%clk 0:02:32.2]} 21... bxc5 {[%clk 0:03:08.2]} 22. Nbxc5
{[%clk 0:02:27.4]} 22... Nxc5 {[%clk 0:02:39]} 23. Nxc5 {[%clk 0:02:26.6]} 23...
Be7 {[%clk 0:02:39.6]} 24. a4 {[%clk 0:01:57.2]} 24... Qa8 {[%clk 0:02:03.5]}
25. Qb2 {[%clk 0:01:45.9]} 25... Bxc5 {[%clk 0:01:57.5]} 26. Rxc5 {[%clk
0:01:43.1]} 26... Rxc5 {[%clk 0:01:44.4]} 27. Bxc5 {[%clk 0:01:44]} 27... Bc6
{[%clk 0:01:32.6]} 28. Bd4 {[%clk 0:01:43.3]} 28... Nh5 {[%clk 0:01:03.7]} 29.
a5 {[%clk 0:01:38.8]} 29... Nf4 {[%clk 0:00:48.5]} 30. Bxg7 {[%clk 0:01:27.2]}
30... Nxe2 {[%clk 0:00:46.3]} 31. Bxh6 {[%clk 0:01:27]} 31... e5 {[%clk
0:00:26.2]} 32. Qxe2 {[%clk 0:01:25.2]} 32... Bb5 {[%clk 0:00:24]} 33. Qe3
{[%clk 0:01:18.6]} 33... Kh7 {[%clk 0:00:13.7]} 34. Qg5 {[%clk 0:01:05.3]} 34...
Rg8 {[%clk 0:00:07.6]} 35. Qh5 {[%clk 0:01:05.4]} 35... Rg6 {[%clk 0:00:04.4]}
36. Bg5+ {[%clk 0:00:47.5]} 36... Kg8 {[%clk 0:00:04.5]} 37. Rd1 {[%clk
0:00:47.7]} 1-0

[Event "Late-Titled-Tuesday-Blitz-June-04-2024"]
[Site "Chess.com"]
[Date "2024.06.04"]
[Round "6"]
[White "Heydarli77"]
[Black "LoonsDeKoeben"]
[Result "1-0"]
[WhiteElo "2462"]
[BlackElo "2295"]
[TimeControl "180+1"]
[EndTime "15:05:22 PDT"]
[Termination "Heydarli77 won by resignation"]

1. d4 {[%clk 0:03:00.9]} 1... Nf6 {[%clk 0:02:55.3]} 2. c4 {[%clk 0:02:59.5]}
2... e6 {[%clk 0:02:51.7]} 3. Nc3 {[%clk 0:02:57.4]} 3... Bb4 {[%clk 0:02:46.6]}
4. e3 {[%clk 0:02:56.1]} 4... c5 {[%clk 0:02:38]} 5. Bd3 {[%clk 0:02:51.9]} 5...
cxd4 {[%clk 0:02:35.7]} 6. exd4 {[%clk 0:02:51]} 6... d5 {[%clk 0:02:36.2]} 7.
Ne2 {[%clk 0:02:49.8]} 7... Nc6 {[%clk 0:02:34.8]} 8. O-O {[%clk 0:02:47.6]}
8... h6 {[%clk 0:02:20.9]} 9. c5 {[%clk 0:02:46.6]} 9... O-O {[%clk 0:02:15.1]}
10. a3 {[%clk 0:02:45]} 10... Bxc3 {[%clk 0:02:13.3]} 11. bxc3 {[%clk
0:02:44.6]} 11... e5 {[%clk 0:02:11.6]} 12. f3 {[%clk 0:02:36.9]} 12... exd4
{[%clk 0:02:04.5]} 13. cxd4 {[%clk 0:02:35.9]} 13... Ne7 {[%clk 0:01:56.1]} 14.
Bf4 {[%clk 0:02:32.8]} 14... Nf5 {[%clk 0:01:41.7]} 15. Qd2 {[%clk 0:02:22]}
15... Be6 {[%clk 0:01:23.6]} 16. Rab1 {[%clk 0:02:16.6]} 16... Qd7 {[%clk
0:01:19]} 17. Be5 {[%clk 0:02:11.4]} 17... Ne8 {[%clk 0:01:06.4]} 18. Bb5 {[%clk
0:02:07.9]} 18... Qe7 {[%clk 0:01:05.8]} 19. Nf4 {[%clk 0:01:56.4]} 19... Qg5
{[%clk 0:00:55.4]} 20. Rf2 {[%clk 0:01:47.5]} 20... Nf6 {[%clk 0:00:27.4]} 21.
Nxe6 {[%clk 0:01:38.6]} 21... fxe6 {[%clk 0:00:27.2]} 22. Qxg5 {[%clk 0:01:37]}
22... hxg5 {[%clk 0:00:28.1]} 23. Ba4 {[%clk 0:01:29.3]} 23... Rf7 {[%clk
0:00:23.4]} 24. Re2 {[%clk 0:01:24.8]} 24... Re7 {[%clk 0:00:14]} 25. g4 {[%clk
0:01:18.3]} 25... Nh4 {[%clk 0:00:13.4]} 26. Re3 {[%clk 0:01:16.6]} 26... Ng6
{[%clk 0:00:10.4]} 27. Bd6 {[%clk 0:01:16.3]} 27... Rf7 {[%clk 0:00:06]} 28.
Rxe6 {[%clk 0:01:15.7]} 28... Nh4 {[%clk 0:00:06.4]} 29. Re3 {[%clk 0:01:14.5]}
29... Ne8 {[%clk 0:00:06.1]} 30. Kf2 {[%clk 0:01:06.4]} 30... Nxd6 {[%clk
0:00:05.7]} 31. cxd6 {[%clk 0:01:05]} 31... Raf8 {[%clk 0:00:03.8]} 32. Rbb3
{[%clk 0:01:01.9]} 32... Ng6 {[%clk 0:00:01.2]} 33. Be8 {[%clk 0:01:00.4]} 33...
Rf6 {[%clk 0:00:01]} 34. d7 {[%clk 0:00:58.8]} 34... Rd6 {[%clk 0:00:01.7]} 35.
Bxg6 {[%clk 0:00:54.9]} 35... Rxg6 {[%clk 0:00:01.3]} 36. Rxb7 {[%clk
0:00:53.9]} 36... Rd6 {[%clk 0:00:02.2]} 37. Re8 {[%clk 0:00:51]} 37... Kf7
{[%clk 0:00:03.1]} 38. d8=Q+ {[%clk 0:00:44.8]} 1-0